bitfinex/quotes_ETHUSD_20230902
["timestamp","ask_amount","ask_price","bid_price","bid_amount"]
[1693680062959,13.86995892,1632.5,1632.4,0.68787708]
[1693680065762,14.34995892,1632.5,1632.4,0.68787708]
[1693680065960,14.66962293,1632.5,1632.4,0.68787708]
[1693680066865,12.75163888,1632.5,1632.4,0.68787708]
[1693680069746,14.35380087,1632.5,1632.4,0.68787708]
[1693680074491,14.35380087,1632.5,1632.4,0.04928082]
[1693680079675,14.35380087,1632.5,1631.9,3.0]
[1693680079875,1.568,1632.2,1631.9,6.08185404]
[1693680080812,2.20693765,1632.2,1631.9,6.08185404]
[1693680081700,2.84733468,1632.2,1631.9,6.08185404]
[1693680083640,2.20693765,1632.2,1631.9,6.08185404]
[1693680084338,2.20693765,1632.2,1631.9,3.0]
[1693680086709,2.84733468,1632.2,1631.8,2.45460737]
[1693680086909,2.84733468,1632.2,1631.8,5.53646141]
[1693680087110,2.84733468,1632.2,1631.9,3.0]
[1693680088010,2.20693765,1632.2,1631.9,6.0]
[1693680088342,2.84733468,1632.2,1631.9,6.0]
[1693680090243,1.60099258,1632.3,1632.0,3.08185404]
[1693680090445,1.60099258,1632.3,1632.0,5.44291639]
[1693680090446,3.30114682,1632.3,1632.0,5.44291639]
[1693680090613,0.64039703,1632.3,1632.1,3.0]
[1693680090942,2.23993023,1632.4,1632.1,6.08185404]
[1693680091111,2.23993023,1632.4,1632.1,6.92614568]
[1693680092042,1.27933468,1632.4,1632.1,6.92614568]
[1693680092404,2.23993023,1632.4,1632.1,6.92614568]
[1693680092905,1.27933468,1632.4,1632.1,6.92614568]
[1693680094366,4.90049333,1632.4,1632.1,6.92614568]
[1693680094572,2.23993023,1632.4,1632.1,6.92614568]
[1693680097966,3.80793023,1632.4,1632.1,6.92614568]
[1693680098458,1.70462494,1632.3,1632.1,6.92614568]
[1693680102587,3.30097158,1632.3,1632.1,6.92614568]
[1693680104401,3.30097158,1632.3,1632.1,6.08185404]
[1693680107703,5.62657158,1632.3,1632.1,6.08185404]
[1693680107994,2.96599703,1632.3,1632.1,6.08185404]
[1693680108195,4.86916338,1632.2,1632.0,1.979]
[1693680108360,4.53399703,1632.2,1632.0,5.06085404]
[1693680108559,4.53399703,1632.2,1632.0,3.08185404]
[1693680114309,4.53467417,1632.2,1632.0,3.08185404]
[1693680116507,5.17361182,1632.2,1632.0,3.08185404]
[1693680121816,1.568,1632.1,1631.9,3.0]
[1693680121989,2.2943,1632.1,1631.9,6.08185404]
[1693680122325,2.93537417,1632.1,1631.9,6.08185404]
[1693680125615,2.2943,1632.1,1631.9,6.08185404]
[1693680126010,2.93537417,1632.1,1631.9,6.08185404]
[1693680127119,2.2943,1632.1,1631.9,6.08185404]
[1693680127308,2.93537417,1632.1,1631.9,6.08185404]
[1693680127828,2.2943,1632.1,1631.9,6.08185404]
[1693680137312,2.93537417,1632.1,1631.9,6.08185404]
[1693680138223,2.2943,1632.1,1631.9,6.08185404]
[1693680144724,2.93537417,1632.1,1631.9,6.08185404]
[1693680161447,2.93557461,1632.1,1631.9,6.08185404]
[1693680163753,3.89748653,1632.1,1631.9,6.08185404]
[1693680168259,2.2943,1632.1,1631.9,6.08185404]
[1693680168443,3.89816608,1632.1,1631.9,6.08185404]
[1693680174169,1.70589972,1632.0,1631.9,6.08185404]
[1693680174375,1.70589972,1632.0,1631.9,9.08185404]
[1693680180573,1.70589972,1632.0,1631.9,10.27591642]
[1693680180773,1.60386608,1632.1,1631.9,10.27591642]
[1693680180976,1.60386608,1632.1,1632.0,3.08185404]
[1693680181132,3.3023602,1632.1,1632.0,3.08185404]
[1693680182676,4.26467985,1632.1,1632.0,3.08185404]
[1693680183177,3.3023602,1632.1,1632.0,3.08185404]
[1693680184891,4.26467985,1632.1,1632.0,3.08185404]
[1693680185184,3.3023602,1632.1,1632.0,3.08185404]
[1693680187045,4.26467985,1632.1,1632.0,3.08185404]
[1693680187497,3.3023602,1632.1,1632.0,3.08185404]
[1693680187687,4.26467985,1632.1,1632.0,3.08185404]
[1693680188074,3.3023602,1632.1,1632.0,3.08185404]
[1693680201519,3.3023602,1632.1,1632.0,6.08185404]
[1693680204157,5.5823602,1632.1,1632.0,6.08185404]
[1693680204447,6.54467985,1632.1,1632.0,6.08185404]
[1693680225516,4.26467985,1632.1,1632.0,6.08185404]
[1693680225717,4.26467985,1632.1,1632.0,6.99003944]
[1693680225880,0.64154643,1632.2,1632.0,9.99003944]
[1693680226416,1.06419826,1632.2,1632.1,3.0]
[1693680226712,1.70574469,1632.3,1632.1,6.08185404]
[1693680226899,0.64154643,1632.3,1632.2,3.69003944]
[1693680227083,3.30204109,1632.3,1632.2,3.69003944]
[1693680227285,4.26436074,1632.3,1632.2,3.69003944]
[1693680227702,3.30204109,1632.3,1632.2,3.69003944]
[1693680231727,1.70574429,1632.3,1632.2,3.69003944]
[1693680233717,3.3020601,1632.3,1632.2,3.69003944]
[1693680234751,1.70574429,1632.3,1632.2,3.69003944]
[1693680242259,1.70574429,1632.3,1632.2,3.08185404]
[1693680242766,6.37727939,1632.3,1632.2,3.08185404]
[1693680243065,5.73573296,1632.3,1632.2,3.08185404]
[1693680245454,5.73573296,1632.3,1632.1,3.0]
[1693680245622,1.70485571,1632.2,1632.1,3.08185404]
[1693680245821,3.30130594,1632.2,1632.1,3.08185404]
[1693680246021,5.55270594,1632.2,1632.1,3.08185404]
[1693680248668,5.55288187,1632.2,1632.1,3.08185404]
[1693680249143,5.55288187,1632.2,1632.0,3.0]
[1693680249144,9.5003022,1632.2,1632.0,3.0]
[1693680249346,6.839466,1632.2,1632.0,6.08185404]
[1693680249790,6.05995183,1632.2,1632.0,6.08185404]
[1693680250478,1.70499072,1632.1,1632.0,6.08185404]
[1693680250677,3.80549072,1632.1,1632.0,6.08185404]
[1693680255822,3.80549072,1632.1,1632.0,3.0]
[1693680256107,6.03954141,1632.1,1632.0,3.0]
[1693680256319,11.65744499,1632.1,1632.0,3.0]
[1693680256542,13.25905917,1632.1,1632.0,3.0]
[1693680256714,11.65744499,1632.1,1632.0,3.0]
[1693680257619,11.97776782,1632.1,1632.0,2.36127653]
[1693680259379,11.97776782,1632.1,1632.0,1.22570171]
[1693680264134,0.63893765,1631.7,1631.6,0.52245857]
[1693680264332,2.20693765,1631.7,1631.6,0.52245857]
[1693680273179,3.91087692,1631.7,1631.6,0.52245857]
[1693680274730,5.50780265,1631.7,1631.6,0.52245857]
[1693680275335,3.91087692,1631.7,1631.6,0.52245857]
[1693680275747,5.50779603,1631.7,1631.6,0.52245857]
[1693680278777,6.46679807,1631.7,1631.6,0.52245857]
[1693680280691,5.82746338,1631.7,1631.6,0.52245857]
[1693680283542,7.10613277,1631.7,1631.6,0.52245857]
[1693680284785,8.27636518,1631.7,1631.6,0.52245857]
[1693680287407,8.27636518,1631.7,1631.5,0.68685372]
[1693680287565,3.6208363,1631.6,1631.5,0.68685372]
[1693680288808,5.1888363,1631.6,1631.5,0.68685372]
[1693680289506,3.6208363,1631.6,1631.5,0.68685372]
[1693680291115,4.89950569,1631.6,1631.5,0.68685372]
[1693680291799,3.6208363,1631.6,1631.5,0.68685372]
[1693680292813,4.89950569,1631.6,1631.5,0.68685372]
[1693680294817,3.6208363,1631.6,1631.5,0.68685372]
[1693680296030,3.6208363,1631.6,1631.4,0.49023033]
[1693680296235,0.64025803,1631.5,1631.4,3.57208437]
[1693680296524,0.64025803,1631.5,1631.4,3.08185404]
[1693680296727,3.30178172,1631.5,1631.4,3.08185404]
[1693680296916,0.64025803,1631.5,1631.4,3.08185404]
[1693680297313,2.23717714,1631.5,1631.4,3.08185404]
[1693680297626,3.30178172,1631.5,1631.4,3.08185404]
[1693680297994,0.64025803,1631.5,1631.4,3.08185404]
[1693680298327,2.23717714,1631.5,1631.4,3.08185404]
[1693680298528,3.30178172,1631.5,1631.4,3.08185404]
[1693680298733,0.64025803,1631.5,1631.4,3.08185404]
[1693680298890,2.23717714,1631.5,1631.4,3.08185404]
[1693680299232,0.64025803,1631.5,1631.4,3.08185404]
[1693680299454,2.23717714,1631.5,1631.4,3.08185404]
[1693680299838,3.30178172,1631.5,1631.4,3.08185404]
[1693680300031,0.64025803,1631.5,1631.4,3.08185404]
[1693680300219,2.23717714,1631.5,1631.4,3.08185404]
[1693680300418,0.64025803,1631.5,1631.4,3.08185404]
[1693680300636,2.23717714,1631.5,1631.4,3.63555253]
[1693680300853,1.70486261,1631.5,1631.4,3.63555253]
[1693680301065,0.64025803,1631.6,1631.4,3.63555253]
[1693680301209,3.30172898,1631.6,1631.5,3.08185404]
[1693680301727,3.62078356,1631.6,1631.5,3.08185404]
[1693680302345,3.30284987,1631.6,1631.5,3.08185404]
[1693680302717,4.26216248,1631.6,1631.5,3.08185404]
[1693680303518,3.30284987,1631.6,1631.5,3.08185404]
[1693680304666,5.18878356,1631.6,1631.3,2.45513083]
[1693680304865,5.18878356,1631.6,1631.3,8.53698487]
[1693680304866,4.2621732,1631.5,1631.3,8.53698487]
[1693680305163,1.70597802,1631.4,1631.3,5.53698487]
[1693680305368,0.64138964,1631.4,1631.3,3.58268487]
[1693680305520,3.30307452,1631.4,1631.3,3.58268487]
[1693680305862,1.70597802,1631.4,1631.3,3.58268487]
[1693680306022,3.3030877,1631.4,1631.3,3.58268487]
[1693680306625,1.70597802,1631.4,1631.3,3.58268487]
[1693680307658,5.46030225,1631.5,1631.3,3.58268487]
[1693680308747,4.50098964,1631.5,1631.3,3.58268487]
[1693680310120,5.31585363,1631.5,1631.3,3.58268487]
[1693680311957,3.02425363,1631.5,1631.3,3.58268487]
[1693680312160,5.29055363,1631.5,1631.3,3.08185404]
[1693680312463,1.568,1631.4,1631.2,3.7]
[1693680312623,3.8343,1631.4,1631.2,6.78185404]
[1693680313156,3.8343,1631.4,1631.2,3.7]
[1693680313366,1.568,1631.3,1631.2,0.7]
[1693680314574,4.36335536,1631.4,1631.2,0.7]
[1693680315832,2.73599301,1631.4,1631.2,0.7]
[1693680316028,4.90119301,1631.4,1631.2,0.7]
[1693680316774,4.90119301,1631.4,1631.2,0.7]
[1693680320043,2.80413765,1631.4,1631.2,3.78185404]
[1693680320242,2.80413765,1631.4,1631.3,3.08185404]
[1693680320243,0.63893765,1631.4,1631.3,3.08185404]
[1693680350506,2.81233891,1631.5,1631.3,3.08185404]
[1693680351309,0.63893765,1631.4,1631.3,3.08185404]
[1693680352593,2.81233891,1631.5,1631.3,3.08185404]
[1693680353408,0.63893765,1631.4,1631.3,3.08185404]
[1693680354508,2.81233891,1631.5,1631.3,3.08185404]
[1693680356423,0.63893765,1631.4,1631.3,3.08185404]
[1693680356814,2.81233891,1631.5,1631.3,3.08185404]
[1693680356987,0.63893765,1631.4,1631.3,3.08185404]
[1693680357509,2.81233891,1631.5,1631.3,3.08185404]
[1693680357672,0.63893765,1631.4,1631.3,3.08185404]
[1693680358607,2.81233891,1631.5,1631.3,3.08185404]
[1693680358814,0.63893765,1631.4,1631.3,3.08185404]
[1693680360106,2.81233891,1631.5,1631.3,3.08185404]
[1693680360278,0.63893765,1631.4,1631.3,3.08185404]
[1693680360912,2.81233891,1631.5,1631.3,3.08185404]
[1693680361608,0.63893765,1631.4,1631.3,3.08185404]
[1693680362210,2.81233891,1631.5,1631.3,3.08185404]
[1693680362512,0.63893765,1631.4,1631.3,3.08185404]
[1693680363829,2.81233891,1631.5,1631.3,3.08185404]
[1693680364623,0.63893765,1631.4,1631.3,3.08185404]
[1693680365911,2.81233891,1631.5,1631.3,3.08185404]
[1693680366118,0.64113891,1631.5,1631.3,3.46003944]
[1693680366315,1.70583858,1631.5,1631.3,3.46003944]
[1693680368917,4.50098493,1631.6,1631.3,3.46003944]
[1693680369093,3.53927656,1631.6,1631.3,3.08185404]
[1693680376997,2.159,1631.5,1631.3,3.08185404]
[1693680377684,2.80013891,1631.5,1631.3,3.08185404]
[1693680379485,2.76632891,1631.5,1631.3,3.08185404]
[1693680389109,3.72803728,1631.5,1631.3,3.08185404]
[1693680393819,2.76632891,1631.5,1631.3,3.08185404]
[1693680394117,3.72803728,1631.5,1631.3,3.08185404]
[1693680394521,2.76632891,1631.5,1631.3,3.08185404]
[1693680395685,3.72803728,1631.5,1631.3,3.08185404]
[1693680400826,2.76632891,1631.5,1631.3,3.08185404]
[1693680401526,3.72803728,1631.5,1631.3,3.08185404]
[1693680402448,2.76632891,1631.5,1631.3,3.08185404]
[1693680402726,3.72803728,1631.5,1631.3,3.08185404]
[1693680408858,1.70590441,1631.4,1631.3,3.08185404]
[1693680409733,3.3795655,1631.4,1631.3,3.08185404]
[1693680410541,4.02070441,1631.4,1631.3,3.08185404]
[1693680410752,3.3795655,1631.4,1631.3,3.08185404]
[1693680410965,2.3148,1631.4,1631.3,3.08185404]
[1693680414671,3.37956425,1631.4,1631.3,3.08185404]
[1693680414828,2.3148,1631.4,1631.3,3.08185404]
[1693680415779,4.02070476,1631.4,1631.3,3.08185404]
[1693680417278,4.02070476,1631.4,1631.3,3.56309908]
[1693680417461,4.02070476,1631.4,1631.3,3.08185404]
[1693680419499,1.70590476,1631.4,1631.3,3.49403944]
[1693680419653,0.64113891,1631.4,1631.3,3.49403944]
[1693680420031,1.70590476,1631.4,1631.3,3.49403944]
[1693680420227,0.64113891,1631.4,1631.3,3.49403944]
[1693680433726,3.30304308,1631.4,1631.3,3.49403944]
[1693680437838,0.64113891,1631.4,1631.3,3.49403944]
[1693680438040,3.30304308,1631.4,1631.3,3.49403944]
[1693680439326,0.64113891,1631.5,1631.3,6.49403944]
[1693680439538,0.64113891,1631.7,1631.4,10.66032033]
[1693680439831,0.64113891,1631.8,1631.6,5.44291639]
[1693680440016,0.64113891,1631.8,1631.7,6.08185404]
[1693680440220,0.64113891,1631.9,1631.7,7.08294568]
[1693680440511,1.70556639,1631.9,1631.8,3.08185404]
[1693680440685,0.96170837,1632.0,1631.8,8.44291639]
[1693680440686,0.64113891,1632.0,1631.8,8.44291639]
[1693680441137,0.64113891,1632.0,1631.9,3.0]
[1693680441445,0.64113891,1632.0,1631.9,6.08185404]
[1693680441647,3.30221647,1632.0,1631.9,6.92614568]
[1693680441847,1.70556993,1632.0,1631.9,6.92614568]
[1693680442245,0.64113891,1632.0,1631.9,6.92614568]
[1693680442746,1.60284728,1632.1,1631.9,6.92614568]
[1693680442946,1.70556844,1632.1,1632.0,3.08185404]
[1693680443249,3.30219982,1632.1,1632.0,3.08185404]
[1693680445316,1.70556844,1632.1,1632.0,3.08185404]
[1693680445755,3.30219691,1632.1,1632.0,3.08185404]
[1693680447625,3.30219691,1632.1,1632.0,3.77446861]
[1693680448728,4.26390528,1632.1,1632.0,3.77446861]
[1693680449822,4.26390528,1632.1,1632.0,4.47446861]
[1693680450972,3.62276637,1632.1,1632.0,3.14320289]
[1693680458689,3.62276637,1632.1,1632.0,2.00783351]
[1693680460361,2.55833684,1632.1,1632.0,2.00783351]
[1693680460682,1.70375448,1632.1,1632.0,4.36889586]
[1693680460983,3.30023092,1632.1,1632.0,7.36889586]
[1693680461191,3.30023092,1632.1,1632.0,8.19021461]
[1693680462774,4.26193929,1632.1,1632.0,8.19021461]
[1693680463191,3.30023092,1632.1,1632.0,8.19021461]
[1693680464015,1.70375448,1632.1,1632.0,8.19021461]
[1693680464390,0.63932495,1632.1,1632.0,8.19021461]
[1693680465375,2.23573942,1632.1,1632.0,8.19021461]
[1693680466731,0.63932495,1632.1,1632.0,8.19021461]
[1693680466889,3.30016895,1632.1,1632.0,8.19021461]
[1693680468014,1.70375448,1632.1,1632.0,8.37047461]
[1693680468385,0.63932495,1632.1,1632.0,8.37047461]
[1693680470999,2.23569569,1632.1,1632.0,8.37047461]
[1693680471199,1.70375448,1632.1,1632.0,8.37047461]
[1693680471730,0.63932495,1632.1,1632.0,8.37047461]
[1693680472497,1.60103332,1632.3,1632.2,2.36106235]
[1693680472726,3.29964538,1632.3,1632.2,5.44291639]
[1693680472929,3.29964538,1632.3,1632.2,7.85520803]
[1693680473139,1.70345312,1632.3,1632.2,10.85520803]
[1693680473281,0.63932495,1632.4,1632.2,10.85520803]
[1693680473635,1.60103332,1632.5,1632.4,2.36106235]
[1693680473815,4.26105198,1632.5,1632.4,8.01200803]
[1693680474127,4.26105198,1632.5,1632.4,9.44400803]
[1693680474336,3.62172703,1632.5,1632.4,9.44400803]
[1693680475821,2.55771957,1632.5,1632.4,9.44400803]
[1693680476022,3.62172703,1632.5,1632.4,9.44400803]
[1693680476821,4.90400485,1632.5,1632.4,9.44400803]
[1693680477590,3.61828815,1632.5,1632.4,9.44400803]
[1693680477831,4.89593839,1632.5,1632.4,9.44400803]
[1693680478040,3.8319182,1632.5,1632.4,9.44400803]
[1693680478831,1.27765024,1632.5,1632.4,8.30904782]
[1693680479036,5.00173092,1632.5,1632.4,8.30904782]
[1693680479832,5.00173501,1632.5,1632.4,8.30904782]
[1693680480737,4.89618719,1632.5,1632.4,8.30904782]
[1693680480950,3.832167,1632.5,1632.4,8.30904782]
[1693680481502,3.832167,1632.5,1632.4,9.00904782]
[1693680481708,5.00168557,1632.5,1632.4,9.00904782]
[1693680482134,4.89641272,1632.5,1632.4,9.00904782]
[1693680482907,6.06568471,1632.5,1632.4,9.00904782]
[1693680483231,5.00166452,1632.5,1632.4,9.00904782]
[1693680484707,7.66274751,1632.5,1632.4,9.00904782]
[1693680484910,2.87471304,1632.5,1632.4,9.00904782]
[1693680485435,6.38509727,1632.5,1632.4,9.00904782]
[1693680485739,7.66330207,1632.5,1632.4,9.00904782]
[1693680486036,6.38509727,1632.5,1632.4,9.00904782]
[1693680486222,6.38509727,1632.5,1632.4,9.50356724]
[1693680487306,1.5970628,1632.5,1632.4,9.50356724]
[1693680487830,5.18911271,1632.5,1632.4,9.50356724]
[1693680488142,9.97714718,1632.5,1632.4,9.50356724]
[1693680489145,8.38008438,1632.5,1632.4,9.50356724]
[1693680490810,8.38008438,1632.5,1632.4,8.8651715]
[1693680491842,7.21054161,1632.5,1632.4,8.8651715]
[1693680492332,7.21054161,1632.5,1632.4,7.86407986]
[1693680492735,5.9323917,1632.5,1632.4,7.86407986]
[1693680495749,6.5711228,1632.5,1632.4,7.86407986]
[1693680496124,5.61268157,1632.5,1632.4,7.86407986]
[1693680496806,4.01665129,1632.5,1632.4,7.86407986]
[1693680497845,2.3139,1632.5,1632.4,7.86407986]
[1693680500150,6.00382493,1632.5,1632.4,7.86407986]
[1693680500446,6.96226616,1632.5,1632.4,7.86407986]
[1693680501837,6.96226616,1632.5,1632.4,7.27637346]
[1693680502032,6.32353506,1632.5,1632.4,7.27637346]
[1693680503280,6.32353506,1632.5,1632.4,7.86407986]
[1693680503785,6.32353506,1632.5,1632.4,7.27637346]
[1693680504446,6.32353506,1632.5,1632.4,7.86407986]
[1693680504890,6.32353506,1632.5,1632.4,7.27637346]
[1693680507299,5.36516378,1632.5,1632.4,7.27637346]
[1693680507585,6.32483894,1632.5,1632.4,7.86407986]
[1693680509181,7.60440582,1632.5,1632.4,7.86407986]
[1693680512613,7.21329859,1632.5,1632.4,7.86407986]
[1693680514765,5.93373171,1632.5,1632.4,7.86407986]
[1693680515702,7.21329859,1632.5,1632.4,7.86407986]
[1693680515865,5.93373171,1632.5,1632.4,7.86407986]
[1693680517927,1.70515065,1632.5,1632.4,7.86407986]
[1693680518070,0.64108803,1632.5,1632.4,8.65048785]
[1693680518271,1.70515065,1632.5,1632.4,8.65048785]
[1693680519305,1.70515065,1632.5,1632.4,7.86407986]
[1693680519837,3.82846319,1632.6,1632.4,7.86407986]
[1693680519979,3.82846319,1632.6,1632.5,6.08185404]
[1693680520187,6.48841072,1632.6,1632.5,6.08185404]
[1693680521012,5.52873556,1632.6,1632.5,6.08185404]
[1693680522785,3.93276704,1632.6,1632.5,6.08185404]
[1693680523513,2.2277,1632.6,1632.5,6.08185404]
[1693680528096,2.57908803,1632.7,1632.5,6.08185404]
[1693680528295,0.64108803,1632.7,1632.5,6.08185404]
[1693680528495,2.88258803,1632.7,1632.5,6.08185404]
[1693680528727,4.0178432,1632.7,1632.5,6.08185404]
[1693680537628,2.88258803,1632.7,1632.5,6.08185404]
[1693680537842,2.83258803,1632.7,1632.5,6.08185404]
[1693680541004,5.18781084,1632.6,1632.5,6.08185404]
[1693680541215,7.41951084,1632.6,1632.5,6.08185404]
[1693680541853,7.41951084,1632.6,1632.5,3.08185404]
[1693680542053,8.53064797,1632.6,1632.5,3.08185404]
[1693680548962,9.17167899,1632.6,1632.5,3.08185404]
[1693680549824,8.53064797,1632.6,1632.5,3.08185404]
[1693680550829,9.17167016,1632.6,1632.5,3.08185404]
[1693680551460,8.53064797,1632.6,1632.5,3.08185404]
[1693680551660,9.17166288,1632.6,1632.5,3.08185404]
[1693680552060,8.53064797,1632.6,1632.5,3.08185404]
[1693680555369,9.17177061,1632.6,1632.5,3.08185404]
[1693680561475,8.53064797,1632.6,1632.5,3.08185404]
[1693680565095,8.06050045,1632.6,1632.5,3.08185404]
[1693680567485,7.10082529,1632.6,1632.5,3.08185404]
[1693680567789,8.06050045,1632.6,1632.5,3.08185404]
[1693680573802,7.41951084,1632.6,1632.5,3.08185404]
[1693680580968,5.85151084,1632.6,1632.5,3.08185404]
[1693680584718,7.13107772,1632.6,1632.5,3.08185404]
[1693680585724,8.29954813,1632.6,1632.5,3.08185404]
[1693680594324,9.89900674,1632.6,1632.5,3.08185404]
[1693680595638,8.29954813,1632.6,1632.5,3.08185404]
[1693680603320,6.06784813,1632.6,1632.5,3.08185404]
[1693680606747,6.06784813,1632.6,1632.5,3.78185404]
[1693680610009,4.90226221,1632.6,1632.5,3.78185404]
[1693680613180,3.62269533,1632.6,1632.5,3.78185404]
[1693680613985,4.90226221,1632.6,1632.5,3.78185404]
[1693680619148,3.62269533,1632.6,1632.5,3.78185404]
[1693680619796,4.26439621,1632.6,1632.5,3.78185404]
[1693680621152,3.30183656,1632.6,1632.5,3.78185404]
[1693680622266,3.30183656,1632.6,1632.5,6.78185404]
[1693680624822,5.73419533,1632.6,1632.5,6.78185404]
[1693680624962,6.83360091,1632.6,1632.5,3.78185404]
[1693680625364,6.83307986,1632.6,1632.5,3.78185404]
[1693680628016,5.73367428,1632.6,1632.5,3.78185404]
[1693680630147,0.64135891,1632.7,1632.5,6.78185404]
[1693680630932,3.30119967,1632.7,1632.5,6.78185404]
[1693680631129,0.64135891,1632.7,1632.5,6.78185404]
[1693680631335,0.64135891,1632.7,1632.5,7.56826203]
[1693680631632,3.30118472,1632.7,1632.5,7.56826203]
[1693680632288,0.64135891,1632.7,1632.5,7.56826203]
[1693680632744,1.70529691,1632.7,1632.5,7.56826203]
[1693680633507,4.02329691,1632.7,1632.5,7.56826203]
[1693680633711,2.95935891,1632.7,1632.5,7.56826203]
[1693680638096,2.318,1632.7,1632.5,7.56826203]
[1693680638715,2.318,1632.7,1632.5,6.78185404]
[1693680640349,2.95935891,1632.7,1632.5,6.78185404]
[1693680672247,3.92138549,1632.7,1632.5,6.78185404]
[1693680672402,2.95935891,1632.7,1632.5,6.78185404]
[1693680672602,3.92138549,1632.7,1632.5,6.78185404]
[1693680674141,1.70532642,1632.6,1632.5,6.78185404]
[1693680675921,4.02152642,1632.6,1632.5,6.78185404]
[1693680679352,4.021896,1632.6,1632.5,6.78185404]
[1693680684157,5.61785334,1632.6,1632.5,6.78185404]
[1693680688757,4.021896,1632.6,1632.5,6.78185404]
[1693680688993,5.61785225,1632.6,1632.5,6.78185404]
[1693680698702,3.30165225,1632.6,1632.5,6.78185404]
[1693680698853,0.64172666,1632.6,1632.5,6.78185404]
[1693680699074,2.76482666,1632.6,1632.5,6.78185404]
[1693680699404,5.42475225,1632.6,1632.5,6.78185404]
[1693680710251,2.1231,1632.6,1632.5,6.78185404]
[1693680710403,2.76553584,1632.6,1632.5,6.78185404]
[1693680710591,5.42547772,1632.6,1632.5,6.78185404]
[1693680715932,5.74669564,1632.6,1632.5,6.78185404]
[1693680716831,8.17465237,1632.6,1632.5,6.78185404]
[1693680720382,8.17465237,1632.6,1632.5,3.78185404]
[1693680726465,8.17465237,1632.6,1632.1,0.18470446]
[1693680726466,0.81746524,1632.5,1632.1,0.18470446]
[1693680726670,2.4122936,1631.9,1631.5,0.95965856]
[1693680727009,0.64187363,1631.9,1631.7,5.0]
[1693680727210,2.91147363,1632.1,1631.7,0.5877064]
[1693680727583,3.30285126,1632.0,1631.7,0.5877064]
[1693680727810,0.64187363,1632.0,1631.7,0.5877064]
[1693680728309,3.87428407,1632.1,1631.7,2.4826064]
[1693680728771,3.87428407,1632.1,1631.7,5.4826064]
[1693680728972,3.87428407,1632.1,1631.7,6.07227707]
[1693680729170,2.91147363,1632.1,1631.7,6.07227707]
[1693680729883,2.91147363,1632.1,1631.8,3.08185404]
[1693680731441,3.87428407,1632.1,1631.8,3.08185404]
[1693680732201,1.70623514,1632.0,1631.8,3.08185404]
[1693680732402,1.70623514,1632.0,1631.8,3.99726715]
[1693680733052,3.87428407,1632.1,1631.8,3.99726715]
[1693680733259,1.70622684,1632.0,1631.8,3.99726715]
[1693680734785,2.4122936,1631.7,1631.6,0.41410025]
[1693680735060,2.4122936,1631.7,1631.2,2.8901]
[1693680735061,0.72143912,1631.6,1631.2,2.8901]
[1693680735286,4.98130956,1631.6,1631.3,8.08185404]
[1693680735435,4.55145429,1631.6,1631.3,8.08185404]
[1693680735823,1.06463643,1631.5,1631.3,3.08185404]
[1693680736024,1.70372539,1631.5,1631.3,3.08185404]
[1693680737253,4.25991507,1631.5,1631.3,3.08185404]
[1693680737458,1.59831517,1631.5,1631.3,3.08185404]
[1693680737615,4.25991836,1631.5,1631.3,3.08185404]
[1693680737949,1.59831517,1631.5,1631.3,3.08185404]
[1693680738154,4.25991787,1631.5,1631.3,3.08185404]
[1693680738326,1.70373009,1631.4,1631.3,3.08185404]
[1693680738527,1.70373009,1631.4,1631.3,6.08185404]
[1693680739036,0.63908896,1631.4,1631.3,6.08185404]
[1693680739253,3.30069001,1631.4,1631.3,6.08185404]
[1693680739426,2.23604888,1631.4,1631.3,6.08185404]
[1693680740166,3.19252428,1631.4,1631.3,6.08185404]
[1693680740960,3.61893841,1631.4,1631.3,6.08185404]
[1693680741126,2.55429851,1631.4,1631.3,6.08185404]
[1693680741670,3.61893841,1631.4,1631.3,6.08185404]
[1693680742049,2.55429851,1631.4,1631.3,6.08185404]
[1693680742354,3.83075006,1631.4,1631.3,6.08185404]
[1693680743164,5.00272514,1631.4,1631.3,6.08185404]
[1693680743369,6.06736504,1631.4,1631.3,6.08185404]
[1693680743575,5.00272514,1631.4,1631.3,6.08185404]
[1693680745132,5.00272514,1631.4,1631.3,4.37840371]
[1693680745362,6.59828958,1631.4,1631.3,4.37840371]
[1693680745804,6.06736504,1631.4,1631.3,4.37840371]
[1693680746266,5.00272514,1631.4,1631.3,4.37840371]
[1693680752730,6.06736504,1631.4,1631.3,4.37840371]
[1693680752949,5.00272514,1631.4,1631.3,4.37840371]
[1693680754931,5.00272514,1631.4,1631.3,3.24274725]
[1693680755288,6.59828958,1631.4,1631.3,3.24274725]
[1693680755528,8.90948958,1631.4,1631.3,3.24274725]
[1693680755717,9.97412948,1631.4,1631.3,3.24274725]
[1693680757301,8.69767793,1631.4,1631.3,3.24274725]
[1693680760243,8.69767793,1631.4,1631.3,2.1182186]
[1693680763941,9.07732854,1631.4,1631.3,2.1182186]
[1693680764243,7.4817641,1631.4,1631.3,2.1182186]
[1693680765342,9.39644143,1631.4,1631.3,2.1182186]
[1693680768193,12.05815521,1631.4,1631.3,2.1182186]
[1693680769146,10.75905695,1631.4,1631.3,2.1182186]
[1693680769346,13.42077073,1631.4,1631.3,2.1182186]
[1693680770194,11.5060934,1631.4,1631.3,2.1182186]
[1693680770489,13.42386372,1631.4,1631.3,2.1182186]
[1693680771264,11.5060934,1631.4,1631.3,2.1182186]
[1693680771469,10.14347788,1631.4,1631.3,2.1182186]
[1693680771671,5.1705641,1631.4,1631.3,2.1182186]
[1693680771876,7.08955161,1631.4,1631.3,2.1182186]
[1693680772302,7.83227788,1631.4,1631.3,2.1182186]
[1693680772468,5.1705641,1631.4,1631.3,2.1182186]
[1693680772667,7.83227788,1631.4,1631.3,2.1182186]
[1693680772873,5.1705641,1631.4,1631.3,2.1182186]
[1693680773185,2.30036274,1631.4,1631.3,2.1182186]
[1693680773383,7.09127623,1631.4,1631.3,2.1182186]
[1693680774861,7.09127623,1631.4,1631.3,0.34376379]
[1693680775481,9.19377623,1631.4,1631.3,0.34376379]
[1693680776408,7.2730641,1631.4,1631.3,0.34376379]
[1693680778392,8.87557053,1631.4,1631.3,0.34376379]
[1693680780311,7.2730641,1631.4,1631.3,0.34376379]
[1693680781860,8.87774372,1631.4,1631.3,0.34376379]
[1693680784291,8.5568581,1631.4,1631.3,0.34376379]
[1693680785426,6.10661615,1631.4,1631.3,0.34376379]
[1693680785784,6.74852804,1631.4,1631.3,0.34376379]
[1693680786107,6.10661615,1631.4,1631.3,0.34376379]
[1693680786309,2.48215061,1631.4,1631.3,0.34376379]
[1693680791971,4.18877968,1631.4,1631.3,0.34376379]
[1693680792372,2.48215061,1631.4,1631.3,0.34376379]
[1693680834013,0.37965061,1631.4,1631.3,3.34376379]
[1693680834349,0.37965061,1631.4,1631.3,4.91176379]
[1693680834586,0.96286579,1631.7,1631.4,0.5877064]
[1693680834587,0.64192394,1631.7,1631.4,0.5877064]
[1693680834820,0.64192394,1631.8,1631.6,0.5877064]
[1693680835114,0.64192394,1631.8,1631.7,3.08185404]
[1693680835260,1.7063788,1631.9,1631.7,6.08185404]
[1693680835465,0.64192394,1631.9,1631.7,3.08185404]
[1693680836394,3.30299414,1631.9,1631.7,3.08185404]